lending/lending_fUSD_20241229
["ID","MTS","AMOUNT","RATE_DAILY","PERIOD"]
[347039332,1735480244416,-500.0,0.00012756,2]
[347039334,1735480244425,-500.0,0.00012756,2]
[347039336,1735480244435,-500.0,0.00012756,2]
[347039338,1735480244444,-500.0,0.00012756,2]
[347039340,1735480244454,-500.0,0.00012756,2]
[347039342,1735480244463,-500.0,0.00012756,2]
[347039344,1735480244473,-500.0,0.00012756,2]
[347039346,1735480244483,-629.74,0.00012756,2]
[347039348,1735480244492,-1111.04,0.00012756,2]
[347039350,1735480244501,-500.0,0.00012756,2]
[347039352,1735480244510,-500.0,0.00012756,2]
[347039354,1735480244519,-500.0,0.00012756,2]
[347039356,1735480244528,-500.0,0.00012756,2]
[347039358,1735480244538,-723.91,0.00012756,2]
[347039360,1735480244547,-500.0,0.00012756,2]
[347039362,1735480244557,-500.0,0.00012756,2]
[347039364,1735480244567,-2085.51,0.00012756,2]
[347039366,1735480244576,-500.0,0.00012756,2]
[347039368,1735480244586,-500.0,0.00012756,2]
[347039370,1735480244595,-500.0,0.00012756,2]
[347039372,1735480244604,-500.0,0.00012756,2]
[347039374,1735480244614,-500.0,0.00012756,2]
[347039376,1735480244623,-500.0,0.00012756,2]
[347039378,1735480244633,-500.0,0.00012756,2]
[347039380,1735480244643,-500.0,0.00012756,2]
[347039382,1735480244653,-500.0,0.00012756,2]
[347039384,1735480244662,-617.0371515,0.00012756,2]
[347039386,1735480244671,-1659.04,0.00012756,2]
[347039388,1735480244680,-788.69,0.00012756,2]
[347039389,1735480244690,-500.0,0.00012756,2]
[347039392,1735480244700,-500.0,0.00012756,2]
[347039394,1735480244710,-500.0,0.00012756,2]
[347039396,1735480244719,-500.0,0.00012756,2]
[347039398,1735480244729,-500.0,0.00012756,2]
[347039400,1735480244739,-500.0,0.00012756,2]
[347039402,1735480244748,-500.0,0.00012756,2]
[347039404,1735480244758,-559.19,0.00012756,2]
[347039406,1735480244768,-500.0,0.00012756,2]
[347039408,1735480244777,-500.0,0.00012756,2]
[347039410,1735480244786,-1023.99,0.00012756,2]
[347039412,1735480244795,-500.0,0.00012756,2]
[347039414,1735480244805,-500.0,0.00012756,2]
[347039416,1735480244815,-500.0,0.00012756,2]
[347039418,1735480244824,-500.0,0.00012756,2]
[347039420,1735480244833,-500.0,0.00012756,2]
[347039422,1735480244842,-1042.07,0.00012756,2]
[347039424,1735480244851,-1037.44,0.00012756,2]
[347039426,1735480244860,-500.0,0.00012756,2]
[347039428,1735480244870,-500.0,0.00012756,2]
[347039430,1735480244878,-500.0,0.00012756,2]
[347039432,1735480244887,-510.1958843,0.00012756,2]
[347039434,1735480244898,-500.0,0.00012756,2]
[347039436,1735480244907,-1195.03,0.00012756,2]
[347039438,1735480244916,-500.0,0.00012756,2]
[347039440,1735480244925,-500.0,0.00012756,2]
[347039442,1735480244934,-500.0,0.00012756,2]
[347039444,1735480244943,-500.0,0.00012756,2]
[347039446,1735480244953,-1536.84,0.00012756,2]
[347039447,1735480244962,-500.0,0.00012756,2]
[347039449,1735480244972,-500.0,0.00012756,2]
[347039451,1735480244981,-500.0,0.00012756,2]
[347039453,1735480244990,-644.42,0.00012756,2]
[347039455,1735480245000,-2956.41,0.00012756,2]
[347039457,1735480245010,-500.0,0.00012756,2]
[347039460,1735480245020,-500.0,0.00012756,2]
[347039462,1735480245035,-500.0,0.00012756,2]
[347039464,1735480245044,-500.0,0.00012756,2]
[347039465,1735480245053,-500.0,0.00012756,2]
[347039468,1735480245063,-500.0,0.00012756,2]
[347039469,1735480245073,-500.0,0.00012756,2]
[347039471,1735480245082,-500.0,0.00012756,2]
[347039473,1735480245091,-500.0,0.00012756,2]
[347039475,1735480245102,-500.0,0.00012756,2]
[347039477,1735480245112,-1086.78,0.00012756,2]
[347039479,1735480245121,-533.66,0.00012756,2]
[347039481,1735480245130,-500.0,0.00012756,2]
[347039483,1735480245140,-500.0,0.00012756,2]
[347039485,1735480245149,-500.0,0.00012756,2]
[347039487,1735480245159,-500.0,0.00012756,2]
[347039489,1735480245168,-500.0,0.00012756,2]
[347039491,1735480245177,-500.0,0.00012756,2]
[347039493,1735480245186,-582.19,0.00012756,2]
[347039495,1735480245195,-505.62796734,0.00012756,2]
[347039497,1735480245204,-500.0,0.00012756,2]
[347039499,1735480245214,-500.0,0.00012756,2]
[347039501,1735480245223,-500.0,0.00012756,2]
[347039503,1735480245232,-500.0,0.00012756,2]
[347039505,1735480245241,-500.0,0.00012756,2]
[347039507,1735480245250,-500.0,0.00012756,2]
[347039508,1735480245259,-1155.18,0.00012756,2]
[347039509,1735480245268,-2027.49,0.00012756,2]
[347039510,1735480245278,-500.0,0.00012756,2]
[347039511,1735480245286,-753.53,0.00012756,2]
[347039512,1735480245296,-500.0,0.00012756,2]
[347039513,1735480245305,-500.0,0.00012756,2]
[347039514,1735480245315,-511.57,0.00012756,2]
[347039515,1735480245324,-500.0,0.00012756,2]
[347039517,1735480245333,-500.0,0.00012756,2]
[347039519,1735480245342,-500.0,0.00012756,2]
[347039520,1735480245351,-500.0,0.00012756,2]
[347039522,1735480245360,-500.0,0.00012756,2]
[347039524,1735480245369,-663.25,0.00012756,2]
[347039526,1735480245378,-500.0,0.00012756,2]
[347039528,1735480245387,-500.0,0.00012756,2]
[347039530,1735480245396,-500.0,0.00012756,2]
[347039532,1735480245405,-500.0,0.00012756,2]
[347039534,1735480245415,-500.0,0.00012756,2]
[347039536,1735480245424,-500.0,0.00012756,2]
[347039538,1735480245433,-500.0,0.00012756,2]
[347039540,1735480245442,-631.85,0.00012756,2]
[347039542,1735480245451,-302.14376194,0.00012756,2]
[347039544,1735480245460,-500.0,0.00012756,2]
[347039546,1735480245469,-500.0,0.00012756,2]
[347039548,1735480245479,-884.7,0.00012756,2]
[347039550,1735480245488,-500.0,0.00012756,2]
[347039552,1735480245497,-500.0,0.00012756,2]
[347039554,1735480245507,-500.0,0.00012756,2]
[347039556,1735480245516,-500.0,0.00012756,2]
[347039558,1735480245525,-500.0,0.00012756,2]
[347039560,1735480245534,-500.0,0.00012756,2]
[347039562,1735480245542,-457.9156532,0.00012756,2]
[347039564,1735480245551,-4901.36,0.00012756,2]
[347039566,1735480245561,-873.88,0.00012756,2]
[347039568,1735480245570,-500.0,0.00012756,2]
[347039570,1735480245579,-1472.7,0.00012756,2]
[347039572,1735480245588,-500.0,0.00012756,2]
[347039574,1735480245597,-500.0,0.00012756,2]
[347039576,1735480245606,-500.0,0.00012756,2]
[347039578,1735480245615,-716.18,0.00012756,2]
[347039580,1735480245624,-500.0,0.00012756,2]
[347039582,1735480245633,-500.0,0.00012756,2]
[347039584,1735480245643,-500.0,0.00012756,2]
[347039586,1735480245652,-500.0,0.00012756,2]
[347039588,1735480245661,-534.75,0.00012756,2]
[347039590,1735480245670,-500.0,0.00012756,2]
[347039592,1735480245679,-630.84,0.00012756,2]
[347039594,1735480245688,-500.0,0.00012756,2]
[347039596,1735480245698,-500.0,0.00012756,2]
[347039598,1735480245708,-2625.25,0.00012756,2]
[347039600,1735480245717,-940.62,0.00012756,2]
[347039602,1735480245726,-500.0,0.00012756,2]
[347039604,1735480245735,-500.0,0.00012756,2]
[347039606,1735480245744,-742.73,0.00012756,2]
[347039608,1735480245754,-1191.95,0.00012756,2]
[347039610,1735480245763,-536.92,0.00012756,2]
[347039612,1735480245772,-500.0,0.00012756,2]
[347039614,1735480245781,-500.0,0.00012756,2]
[347039616,1735480245790,-500.0,0.00012756,2]
[347039618,1735480245799,-754.72,0.00012756,2]
[347039619,1735480245810,-500.0,0.00012756,2]
[347039621,1735480245819,-500.0,0.00012756,2]
[347039636,1735480245940,-500.0,0.00012756,2]
[347039638,1735480245950,-732.27,0.00012756,2]
[347039640,1735480245960,-9754.91,0.00012756,2]
[347039642,1735480245970,-500.0,0.00012756,2]
[347039644,1735480245979,-500.0,0.00012756,2]
[347039646,1735480245988,-500.0,0.00012756,2]
[347039648,1735480245997,-500.0,0.00012756,2]
[347039650,1735480246006,-500.0,0.00012756,2]
[347039652,1735480246015,-500.0,0.00012756,2]
[347039654,1735480246028,-1680.7,0.00012756,2]
[347039656,1735480246037,-500.0,0.00012756,2]
[347039658,1735480246047,-1116.46,0.00012756,2]
[347039660,1735480246056,-500.0,0.00012756,2]
[347039662,1735480246067,-500.0,0.00012756,2]
[347039664,1735480246078,-500.0,0.00012756,2]
[347039666,1735480246087,-500.0,0.00012756,2]
[347039668,1735480246097,-500.0,0.00012756,2]
[347039670,1735480246106,-808.33,0.00012756,2]
[347039672,1735480246115,-500.0,0.00012756,2]
[347039674,1735480246124,-500.0,0.00012756,2]
[347039676,1735480246134,-500.0,0.00012756,2]
[347039678,1735480246143,-500.0,0.00012756,2]
[347039680,1735480246152,-1212.91,0.00012756,2]
[347039682,1735480246161,-500.0,0.00012756,2]
[347039684,1735480246170,-500.0,0.00012756,2]
[347039686,1735480246180,-1259.48,0.00012756,2]
[347039688,1735480246189,-500.0,0.00012756,2]
[347039690,1735480246198,-500.0,0.00012756,2]
[347039692,1735480246207,-500.0,0.00012756,2]
[347039694,1735480246216,-500.0,0.00012756,2]
[347039696,1735480246226,-500.0,0.00012756,2]
[347039699,1735480246235,-500.0,0.00012756,2]
[347039701,1735480246244,-500.0,0.00012756,2]
[347039703,1735480246254,-500.0,0.00012756,2]
[347039705,1735480246263,-500.0,0.00012756,2]
[347039708,1735480246272,-500.0,0.00012756,2]
[347039710,1735480246281,-1410.23,0.00012756,2]
[347039712,1735480246291,-500.0,0.00012756,2]
[347039714,1735480246300,-500.0,0.00012756,2]
[347039716,1735480246309,-500.0,0.00012756,2]
[347039718,1735480246319,-500.0,0.00012756,2]
[347039720,1735480246328,-500.0,0.00012756,2]
[347039722,1735480246337,-1551.74,0.00012756,2]
[347039724,1735480246346,-802.2,0.00012756,2]
[347039726,1735480246355,-902.38,0.00012756,2]
[347039728,1735480246364,-500.0,0.00012756,2]
[347039730,1735480246374,-1250.07,0.00012756,2]
[347039732,1735480246383,-500.0,0.00012756,2]
[347039734,1735480246392,-682.81,0.00012756,2]
[347039736,1735480246401,-215.71174073,0.00012756,2]
[347039738,1735480246411,-500.0,0.00012756,2]
[347039740,1735480246420,-500.0,0.00012756,2]
[347039742,1735480246430,-500.0,0.00012756,2]
[347039744,1735480246439,-500.0,0.00012756,2]
[347039746,1735480246449,-500.0,0.00012756,2]
[347039748,1735480246458,-500.0,0.00012756,2]
[347039750,1735480246467,-791.35,0.00012756,2]
[347039752,1735480246477,-500.0,0.00012756,2]
[347039754,1735480246486,-500.0,0.00012756,2]
[347039756,1735480246496,-585.63,0.00012756,2]
[347039758,1735480246505,-500.0,0.00012756,2]
[347039760,1735480246514,-500.0,0.00012756,2]
[347039762,1735480246523,-500.0,0.00012756,2]
[347039764,1735480246533,-500.0,0.00012756,2]
[347039766,1735480246542,-500.0,0.00012756,2]
[347039768,1735480246551,-500.0,0.00012756,2]
[347039770,1735480246560,-1085.18,0.00012756,2]
[347039772,1735480246571,-500.0,0.00012756,2]
[347039774,1735480246580,-924.92,0.00012756,2]
[347039776,1735480246589,-863.61,0.00012756,2]
[347039778,1735480246598,-500.0,0.00012756,2]
[347039780,1735480246607,-500.0,0.00012756,2]
[347039782,1735480246617,-500.0,0.00012756,2]
[347039784,1735480246627,-2133.76,0.00012756,2]
[347039786,1735480246637,-500.0,0.00012756,2]
[347039788,1735480246646,-500.0,0.00012756,2]
[347039791,1735480246667,-500.0,0.00012756,2]
[347039794,1735480246683,-500.0,0.00012756,2]
[347039797,1735480246703,-500.0,0.00012756,2]
[347039800,1735480246722,-500.0,0.00012756,2]
[347039802,1735480246736,-3379.82,0.00012756,2]
[347039805,1735480246755,-795.53,0.00012756,2]
[347039808,1735480246774,-500.0,0.00012756,2]
[347039812,1735480246794,-797.49,0.00012756,2]
[347039814,1735480246813,-500.0,0.00012756,2]
[347039817,1735480246831,-500.0,0.00012756,2]
[347039820,1735480246848,-619.14,0.00012756,2]
[347039822,1735480246862,-500.0,0.00012756,2]
[347039826,1735480246881,-500.0,0.00012756,2]
[347039829,1735480246894,-500.0,0.00012756,2]
[347039832,1735480246913,-500.0,0.00012756,2]
[347039835,1735480246926,-500.0,0.00012756,2]
[347039837,1735480246943,-655.24,0.00012756,2]
[347039840,1735480246957,-453.04814283,0.00012756,2]
[347039842,1735480246973,-500.0,0.00012756,2]
[347039845,1735480246989,-500.0,0.00012756,2]
[347039848,1735480247004,-766.2,0.00012756,2]
[347039851,1735480247023,-500.0,0.00012756,2]
[347039853,1735480247039,-500.0,0.00012756,2]
[347039855,1735480247053,-13247.32,0.00012756,2]
[347039858,1735480247069,-500.0,0.00012756,2]
[347039861,1735480247084,-662.38,0.00012756,2]
[347039863,1735480247099,-597.35,0.00012756,2]
[347039866,1735480247113,-623.32,0.00012756,2]
[347039868,1735480247128,-500.0,0.00012756,2]
[347039871,1735480247143,-500.0,0.00012756,2]
[347039874,1735480247158,-500.0,0.00012756,2]
[347039876,1735480247172,-514.67,0.00012756,2]
[347039879,1735480247186,-500.0,0.00012756,2]
[347039881,1735480247200,-500.0,0.00012756,2]
[347039884,1735480247215,-528.42,0.00012756,2]
[347039887,1735480247230,-500.0,0.00012756,2]
[347039889,1735480247245,-894.54,0.00012756,2]
[347039892,1735480247260,-500.0,0.00012756,2]
[347039894,1735480247275,-500.0,0.00012756,2]
[347039895,1735480247289,-500.0,0.00012756,2]
[347039896,1735480247304,-500.0,0.00012756,2]
[347039897,1735480247319,-500.0,0.00012756,2]
[347039898,1735480247334,-500.0,0.00012756,2]
[347039900,1735480247349,-500.0,0.00012756,2]
[347039902,1735480247364,-500.0,0.00012756,2]
[347039905,1735480247380,-500.0,0.00012756,2]
[347039907,1735480247396,-500.0,0.00012756,2]
[347039908,1735480247410,-500.0,0.00012756,2]
[347039909,1735480247426,-500.0,0.00012756,2]
[347039910,1735480247441,-500.0,0.00012756,2]
[347039911,1735480247457,-500.0,0.00012756,2]
[347039912,1735480247472,-500.0,0.00012756,2]
[347039913,1735480247487,-500.0,0.00012756,2]
[347039914,1735480247502,-500.0,0.00012756,2]
[347039915,1735480247516,-500.0,0.00012756,2]
[347039916,1735480247531,-683.93,0.00012756,2]
[347039917,1735480247547,-500.0,0.00012756,2]
[347039918,1735480247562,-869.16,0.00012756,2]
[347039919,1735480247577,-500.0,0.00012756,2]
[347039921,1735480247593,-500.0,0.00012756,2]
[347039922,1735480247608,-500.0,0.00012756,2]
[347039923,1735480247623,-500.0,0.00012756,2]
[347039924,1735480247638,-500.0,0.00012756,2]
[347039925,1735480247654,-500.0,0.00012756,2]
[347039926,1735480247670,-500.0,0.00012756,2]
[347039927,1735480247685,-500.0,0.00012756,2]
[347039928,1735480247699,-500.0,0.00012756,2]
[347039929,1735480247714,-770.86,0.00012756,2]
[347039930,1735480247729,-1003.82,0.00012756,2]
[347039931,1735480247745,-500.0,0.00012756,2]
[347039933,1735480247759,-500.0,0.00012756,2]
[347039935,1735480247774,-696.13,0.00012756,2]
[347039938,1735480247788,-500.0,0.00012756,2]
[347039939,1735480247803,-500.0,0.00012756,2]
[347039940,1735480247817,-500.0,0.00012756,2]
[347039941,1735480247833,-500.0,0.00012756,2]
[347039942,1735480247847,-2044.18,0.00012756,2]
[347039943,1735480247863,-500.0,0.00012756,2]
[347039944,1735480247878,-1485.75,0.00012756,2]
[347039945,1735480248058,-500.0,0.00012756,2]
[347039946,1735480248068,-500.0,0.00012756,2]
[347039947,1735480248077,-500.0,0.00012756,2]
[347039948,1735480248087,-500.0,0.00012756,2]
[347039949,1735480248097,-500.0,0.00012756,2]
[347039950,1735480248107,-500.0,0.00012756,2]
[347039951,1735480248117,-500.0,0.00012756,2]
[347039952,1735480248127,-2105.87,0.00012756,2]
[347039953,1735480248136,-500.0,0.00012756,2]
[347039954,1735480248146,-500.0,0.00012756,2]
[347039955,1735480248155,-500.0,0.00012756,2]
[347039956,1735480248165,-500.0,0.00012756,2]
[347039957,1735480248174,-1990.87,0.00012756,2]
[347039958,1735480248183,-500.0,0.00012756,2]
[347039959,1735480248193,-500.0,0.00012756,2]
[347039960,1735480248202,-500.0,0.00012756,2]
[347039961,1735480248211,-500.0,0.00012756,2]
[347039962,1735480248221,-500.0,0.00012756,2]
[347039963,1735480248231,-500.0,0.00012756,2]
[347039964,1735480248240,-500.0,0.00012756,2]
[347039965,1735480248250,-500.0,0.00012756,2]
[347039966,1735480248259,-500.0,0.00012756,2]
[347039967,1735480248269,-500.0,0.00012756,2]
[347039968,1735480248278,-500.0,0.00012756,2]
[347039969,1735480248288,-2644.66,0.00012756,2]
[347039970,1735480248297,-500.0,0.00012756,2]
[347039971,1735480248306,-645.11,0.00012756,2]
[347039972,1735480248317,-500.0,0.00012756,2]
[347039973,1735480248327,-500.0,0.00012756,2]
[347039974,1735480248337,-500.0,0.00012756,2]
[347039975,1735480248346,-500.0,0.00012756,2]
[347039976,1735480248355,-526.09,0.00012756,2]
[347039977,1735480248365,-500.0,0.00012756,2]
[347039978,1735480248374,-678.87,0.00012756,2]
[347039979,1735480248385,-500.0,0.00012756,2]
[347039980,1735480248394,-500.0,0.00012756,2]
[347039981,1735480248403,-500.0,0.00012756,2]
[347039982,1735480248413,-500.0,0.00012756,2]
[347039983,1735480248422,-1983.11,0.00012756,2]
[347039984,1735480248431,-500.0,0.00012756,2]
[347039985,1735480248440,-500.0,0.00012756,2]
[347039986,1735480248450,-500.0,0.00012756,2]
[347039987,1735480248460,-500.0,0.00012756,2]
[347039988,1735480248470,-510.57532014,0.00012757,2]
[347039989,1735480248480,-156.676808,0.00012757,2]
[347039990,1735480248489,-500.0,0.00012757,2]
[347039991,1735480248499,-500.0,0.00012757,2]
[347039992,1735480248508,-500.0,0.00012757,2]
[347039993,1735480248517,-500.0,0.00012757,2]
[347039994,1735480248527,-500.0,0.00012757,2]
[347039995,1735480248544,-500.0,0.00012757,2]
[347039996,1735480248553,-500.0,0.00012757,2]
[347039997,1735480248563,-500.0,0.00012757,2]
[347039998,1735480248572,-501.38946582,0.00012757,2]
[347039999,1735480248582,-500.69148134,0.00012757,2]
[347040000,1735480248592,-502.37656309,0.00012757,2]
[347040001,1735480248601,-307.12573288,0.00012757,2]
[347040002,1735480248611,-501.18052356,0.00012757,2]
[347040003,1735480248621,-500.0,0.00012757,2]
[347040004,1735480248630,-500.0,0.00012757,2]
[347040005,1735480248640,-501.87231997,0.00012757,2]
[347040006,1735480248650,-500.0,0.00012757,2]
[347040007,1735480248659,-500.0,0.00012757,2]
[347040008,1735480248669,-500.0,0.00012757,2]
[347040009,1735480248678,-300.0,0.00012757,2]
[347040010,1735480248687,-500.81499539,0.00012757,2]
[347040011,1735480248697,-500.0,0.00012757,2]
[347040012,1735480248707,-519.76728113,0.00012757,2]
[347040013,1735480248716,-500.0,0.00012757,2]
[347040014,1735480248726,-500.0,0.00012757,2]
[347040015,1735480248736,-500.0,0.00012757,2]
[347040016,1735480248745,-504.02174388,0.00012757,2]
[347040017,1735480248755,-500.0,0.00012757,2]
[347040018,1735480248765,-500.0,0.00012757,2]
[347040019,1735480248774,-334.85673616,0.00012757,2]
[347040020,1735480248784,-500.0,0.00012757,2]
[347040021,1735480248793,-500.0,0.00012757,2]
[347040022,1735480248803,-500.0,0.00012757,2]
[347040023,1735480248812,-500.0,0.00012757,2]
[347040024,1735480248822,-500.0,0.00012757,2]
[347040025,1735480248831,-500.0,0.00012757,2]
[347040026,1735480248841,-500.0,0.00012757,2]
[347040027,1735480248851,-502.40132212,0.00012757,2]
[347040028,1735480248860,-500.0,0.00012757,2]
[347040029,1735480248869,-500.0,0.00012757,2]
[347040030,1735480248879,-1000.0,0.00012757,2]
[347040031,1735480248888,-1050.44,0.00012757,2]
[347040032,1735480248898,-500.0,0.00012757,2]
[347040033,1735480248907,-693.92,0.00012757,2]
[347040034,1735480248917,-500.0,0.00012757,2]
[347040035,1735480248925,-704.24,0.00012757,2]
[347040036,1735480248935,-500.0,0.00012757,2]
[347040037,1735480248945,-1288.59,0.00012757,2]
[347040038,1735480248955,-888.78,0.00012757,2]
[347040039,1735480248965,-769.24,0.00012757,2]
[347040040,1735480248974,-711.43,0.00012757,2]
[347040041,1735480248984,-500.0,0.00012757,2]
[347040042,1735480248993,-1332.56,0.00012757,2]
[347040043,1735480249003,-841.93,0.00012757,2]
[347040044,1735480249012,-500.0,0.00012757,2]
[347040045,1735480249026,-1095.76,0.00012757,2]
[347040046,1735480249035,-1407.67,0.00012757,2]
[347040047,1735480249045,-909.78,0.00012757,2]
[347040048,1735480249054,-500.0,0.00012757,2]
[347040049,1735480249064,-1391.03,0.00012757,2]
[347040050,1735480249074,-500.0,0.00012757,2]
[347040051,1735480249083,-1457.03,0.00012757,2]
[347040052,1735480249094,-708.06,0.00012757,2]
[347040053,1735480249104,-500.0,0.00012757,2]
[347040054,1735480249114,-979.24,0.00012757,2]
[347040055,1735480249123,-1548.66,0.00012757,2]
[347040056,1735480249132,-874.82,0.00012757,2]
[347040057,1735480249141,-575.32453104,0.00012757,2]
[347040058,1735480249150,-570.63,0.00012757,2]
[347040059,1735480249160,-500.0,0.00012757,2]
[347040060,1735480249170,-576.55,0.00012757,2]
[347040061,1735480249179,-500.0,0.00012757,2]
[347040062,1735480249189,-1611.67,0.00012757,2]
[347040063,1735480249199,-887.14,0.00012757,2]
[347040064,1735480249208,-1826.7,0.00012757,2]
[347040065,1735480249218,-566.68,0.00012757,2]
[347040066,1735480249228,-3229.33,0.00012757,2]
[347040067,1735480249238,-500.0,0.00012757,2]
[347040068,1735480249248,-500.0,0.00012757,2]
[347040069,1735480249258,-235.14,0.00012757,2]
[347040070,1735480249267,-1904.53,0.00012757,2]
[347040071,1735480249277,-692.3,0.00012757,2]
[347040072,1735480249286,-1525.09,0.00012757,2]
[347040073,1735480249296,-2629.61,0.00012757,2]
[347040074,1735480249306,-839.21,0.00012757,2]
[347040075,1735480249315,-500.0,0.00012757,2]
[347040076,1735480249326,-500.0,0.00012757,2]
[347040077,1735480249336,-3670.49,0.00012757,2]
[347040078,1735480249347,-3057.97,0.00012757,2]
[347040079,1735480249356,-1281.98,0.00012757,2]
[347040080,1735480249366,-500.0,0.00012757,2]
[347040081,1735480249376,-500.0,0.00012757,2]
[347040082,1735480249385,-682.02,0.00012757,2]
[347040083,1735480249396,-2294.07,0.00012757,2]
[347040084,1735480249405,-5852.4,0.00012757,2]
[347040085,1735480249415,-500.0,0.00012757,2]
[347040086,1735480249425,-500.0,0.00012757,2]
[347040087,1735480249434,-2548.97,0.00012757,2]
[347040088,1735480249444,-3037.2,0.00012757,2]
[347040089,1735480249454,-11234.53,0.00012757,2]
[347040090,1735480249464,-500.0,0.00012757,2]
[347040091,1735480249473,-3682.06,0.00012757,2]
[347040092,1735480249482,-1205.91,0.00012757,2]
[347040093,1735480249491,-276.03971705,0.00012758,2]
[347040094,1735480249501,-500.0,0.00012758,2]
[347040095,1735480249510,-500.0,0.00012758,2]
[347040096,1735480249519,-500.0,0.00012758,2]
[347040097,1735480249529,-500.0,0.00012758,2]
[347040098,1735480249538,-500.0,0.00012758,2]
[347040099,1735480249549,-500.0,0.00012758,2]
[347040100,1735480249559,-500.0,0.00012758,2]
[347040101,1735480249570,-500.0,0.00012758,2]
[347040102,1735480249580,-507.75461407,0.00012758,2]
[347040103,1735480249590,-500.0,0.00012758,2]
[347040104,1735480249599,-500.0,0.00012758,2]
[347040105,1735480249609,-500.0,0.00012758,2]
[347040106,1735480249620,-500.0,0.00012758,2]
[347040107,1735480249632,-500.0,0.00012758,2]
[347040108,1735480249642,-500.0,0.00012758,2]
[347040109,1735480249652,-500.0,0.00012758,2]
[347040110,1735480249662,-500.0,0.00012758,2]
[347040111,1735480249672,-500.0,0.00012758,2]
[347040112,1735480249683,-500.0,0.00012758,2]
[347040113,1735480249693,-580.37,0.00012758,2]
[347040114,1735480249703,-500.0,0.00012758,2]
[347040115,1735480249713,-500.0,0.00012758,2]
[347040116,1735480249723,-500.0,0.00012758,2]
[347040117,1735480249733,-500.0,0.00012758,2]
[347040118,1735480249744,-500.0,0.00012758,2]
[347040119,1735480249753,-500.0,0.00012758,2]
[347040120,1735480249764,-500.0,0.00012758,2]
[347040121,1735480249773,-500.0,0.00012758,2]
[347040122,1735480249783,-500.0,0.00012758,2]
[347040123,1735480249793,-500.0,0.00012758,2]
[347040124,1735480249803,-500.0,0.00012758,2]
[347040125,1735480249813,-500.0,0.00012758,2]
[347040126,1735480249823,-500.0,0.00012758,2]
[347040127,1735480249832,-500.0,0.00012758,2]
[347040128,1735480249842,-500.0,0.00012758,2]
[347040129,1735480249851,-556.15,0.00012758,2]
[347040130,1735480249861,-500.0,0.00012758,2]
[347040131,1735480249871,-500.0,0.00012758,2]
[347040132,1735480249881,-500.0,0.00012758,2]
[347040133,1735480249891,-500.0,0.00012758,2]
[347040134,1735480249900,-500.0,0.00012758,2]
[347040135,1735480249910,-500.0,0.00012758,2]
[347040136,1735480249920,-500.0,0.00012758,2]
[347040137,1735480249929,-500.0,0.00012758,2]
[347040138,1735480249938,-500.0,0.00012758,2]